bitfinex/quotes_SOLUSD_20250604
["timestamp","ask_amount","ask_price","bid_price","bid_amount"]
[1749068732543,26.0,154.31,154.27,42.92]
[1749068732723,20.13650685,154.28,154.27,42.92]
[1749068733646,20.13650685,154.28,154.24,12.32]
[1749068733834,20.13650685,154.25,154.24,12.32]
[1749068734041,20.13650685,154.25,154.24,55.14]
[1749068735126,26.0,154.29,154.24,55.14]
[1749068735317,26.0,154.29,154.24,12.32]
[1749068735523,20.13650685,154.26,154.25,42.78]
[1749068736041,26.0,154.29,154.25,42.78]
[1749068736228,20.13650685,154.26,154.25,42.78]
[1749068737647,20.13650685,154.26,154.24,12.32]
[1749068737834,32.48139203,154.29,154.25,42.72]
[1749068738031,20.13650685,154.26,154.24,12.32]
[1749068738235,20.13650685,154.25,154.24,12.32]
[1749068738433,1.6237,154.28,154.24,12.32]
[1749068738751,1.6237,154.28,154.24,55.02]
[1749068738752,20.13650685,154.25,154.24,55.02]
[1749068740031,20.13650685,154.25,154.24,54.98]
[1749068741740,20.13650685,154.25,154.24,12.32]
[1749068741934,20.13650685,154.25,154.24,54.92]
[1749068742457,6.48235514,154.27,154.24,54.92]
[1749068742751,20.13650685,154.25,154.24,54.9]
[1749068743322,20.13650685,154.25,154.24,12.32]
[1749068743749,40.2730137,154.25,154.24,12.32]
[1749068744551,20.13650685,154.25,154.24,12.32]
[1749068745756,26.0,154.23,154.22,6.81836005]
[1749068745958,52.62032971,154.23,154.21,12.22]
[1749068746169,20.13650685,154.22,154.21,12.22]
[1749068747767,21.75290685,154.22,154.18,12.22]
[1749068747936,20.13650685,154.19,154.18,54.78]
[1749068748266,20.13650685,154.19,154.18,12.22]
[1749068748460,26.0,154.19,154.18,54.78]
[1749068748760,46.13650685,154.19,154.18,54.8]
[1749068749458,46.13650685,154.19,154.18,54.82]
[1749068750557,46.13650685,154.19,154.18,54.78]
[1749068751935,46.13650685,154.19,154.18,54.74]
[1749068753238,46.13650685,154.19,154.18,54.7]
[1749068753437,52.62201174,154.19,154.18,12.22]
[1749068753743,52.76417331,154.19,154.18,12.22]
[1749068754664,46.27866842,154.19,154.18,12.22]
[1749068761866,20.13650685,154.19,154.18,54.5]
[1749068762072,20.13650685,154.21,154.18,54.5]
[1749068762245,20.13650685,154.24,154.19,20.13650685]
[1749068762441,20.13650685,154.24,154.18,56.0774]
[1749068762442,20.13650685,154.25,154.2,62.41650685]
[1749068762642,20.13650685,154.24,154.2,62.41650685]
[1749068762866,20.13650685,154.26,154.21,20.27866842]
[1749068763063,20.13650685,154.26,154.22,62.41650685]
[1749068763372,20.13650685,154.26,154.22,42.28]
[1749068764246,1.6061,154.3,154.22,42.28]
[1749068764463,20.13650685,154.25,154.22,42.28]
[1749068765678,1.6061,154.3,154.22,62.41650685]
[1749068765842,20.13650685,154.25,154.22,42.28]
[1749068766042,20.13650685,154.24,154.22,42.28]
[1749068766247,20.13650685,154.23,154.22,42.28]
[1749068766673,20.13650685,154.24,154.22,42.28]
[1749068766860,20.13650685,154.25,154.22,42.28]
[1749068770156,26.0,154.29,154.22,42.28]
[1749068770971,20.13650685,154.25,154.22,42.28]
[1749068771688,26.0,154.29,154.22,42.28]
[1749068771859,20.13650685,154.24,154.22,42.28]
[1749068772961,26.0,154.29,154.23,20.13650685]
[1749068773152,20.13650685,154.27,154.24,11.9]
[1749068773380,20.13650685,154.26,154.24,11.9]
[1749068773579,26.0,154.3,154.24,11.9]
[1749068773790,20.13650685,154.27,154.24,11.9]
[1749068773986,20.13650685,154.26,154.24,11.9]
[1749068774282,20.13650685,154.32,154.25,42.28]
[1749068774283,26.0,154.29,154.25,42.28]
[1749068774857,26.0,154.31,154.25,42.28]
[1749068775291,26.0,154.29,154.25,42.28]
[1749068775463,20.13650685,154.26,154.25,42.28]
[1749068776762,20.13650685,154.26,154.25,54.22]
[1749068778558,26.0,154.29,154.25,54.22]
[1749068778763,26.0,154.3,154.25,54.22]
[1749068779182,20.13650685,154.28,154.25,54.22]
[1749068779590,20.13650685,154.27,154.25,54.22]
[1749068781077,26.0,154.3,154.25,54.22]
[1749068781285,20.13650685,154.27,154.25,54.22]
[1749068781791,20.13650685,154.26,154.25,54.22]
[1749068782390,26.0,154.3,154.25,54.22]
[1749068782695,20.13650685,154.26,154.25,54.22]
[1749068783072,20.13650685,154.26,154.25,11.9]
[1749068783275,40.41517527,154.26,154.25,11.9]
[1749068783894,20.13650685,154.26,154.25,11.9]
[1749068784273,40.2730137,154.26,154.25,11.9]
[1749068784482,20.13650685,154.26,154.25,11.9]
[1749068788212,26.0,154.26,154.25,11.9]
[1749068788378,20.13650685,154.26,154.25,11.9]
[1749068790280,26.0,154.29,154.25,11.9]
[1749068790480,3.64825721,154.32,154.25,11.9]
[1749068790691,20.13650685,154.28,154.25,11.9]
[1749068790888,20.13650685,154.26,154.25,11.9]
[1749068792206,20.13650685,154.27,154.25,11.9]
[1749068792902,20.13650685,154.29,154.25,11.9]
[1749068793088,20.13650685,154.29,154.25,32.03650685]
[1749068793285,26.0,154.32,154.25,32.03650685]
[1749068793286,26.0,154.32,154.26,20.13650685]
[1749068793478,20.13650685,154.3,154.27,42.62]
[1749068793679,20.13650685,154.28,154.27,42.62]
[1749068794074,46.13650685,154.32,154.27,42.62]
[1749068794485,20.13650685,154.28,154.27,42.62]
[1749068794917,148.1,154.33,154.27,42.62]
[1749068795284,20.13650685,154.32,154.28,20.13650685]
[1749068795484,148.1,154.33,154.28,20.13650685]
[1749068795881,20.13650685,154.32,154.28,20.13650685]
[1749068796109,20.13650685,154.29,154.24,26.0]
[1749068796307,46.13650685,154.25,154.18,0.14216157]
[1749068796508,1.6091,154.3,154.17,6.0063]
[1749068796509,20.13650685,154.2,154.17,6.0063]
[1749068796722,20.13650685,154.19,154.17,6.0063]
[1749068796922,20.13650685,154.19,154.18,43.80216157]
[1749068797213,20.13650685,154.19,154.18,43.66]
[1749068797611,20.13650685,154.19,154.16,12.3]
[1749068797911,20.13650685,154.19,154.18,43.66]
[1749068798130,20.13650685,154.22,154.18,43.66]
[1749068798285,26.0,154.24,154.18,43.66]
[1749068798286,20.13650685,154.21,154.18,43.66]
[1749068798929,26.0,154.24,154.18,43.66]
[1749068799213,30.23518878,154.21,154.18,43.66]
[1749068800695,30.23518878,154.26,154.19,43.56]
[1749068800696,30.23518878,154.2,154.19,43.56]
[1749068801111,30.23518878,154.21,154.19,43.56]
[1749068801310,26.0,154.23,154.19,43.56]
[1749068801731,30.23518878,154.21,154.19,43.56]
[1749068802093,30.23518878,154.2,154.19,43.56]
[1749068804315,10.13448405,154.26,154.19,43.56]
[1749068804495,30.23518878,154.2,154.19,43.56]
[1749068804890,30.23518878,154.26,154.19,43.56]
[1749068805123,30.23518878,154.23,154.19,43.56]
[1749068805332,30.23518878,154.24,154.19,73.79518878]
[1749068805891,30.23518878,154.24,154.2,0.14216157]
[1749068806094,30.23518878,154.24,154.2,30.37735035]
[1749068806793,30.23518878,154.24,154.2,0.14216157]
[1749068807513,30.23518878,154.23,154.21,12.3]
[1749068808225,30.23518878,154.24,154.21,12.3]
[1749068809206,30.23518878,154.23,154.22,43.44]
[1749068809795,26.0,154.25,154.22,43.44]
[1749068809997,30.23518878,154.23,154.22,43.44]
[1749068810427,30.23518878,154.23,154.19,30.23518878]
[1749068810611,30.23518878,154.23,154.2,55.76]
[1749068811826,30.23518878,154.23,154.21,55.72]
[1749068813203,30.23518878,154.23,154.22,55.66]
[1749068814425,30.23518878,154.23,154.19,30.23518878]
[1749068814600,30.23518878,154.23,154.22,55.62]
[1749068815831,30.23518878,154.24,154.22,55.62]
[1749068816608,30.23518878,154.23,154.22,55.62]
[1749068818817,29.65649053,154.27,154.22,55.62]
[1749068819009,30.23518878,154.24,154.22,55.62]
[1749068819211,20.15194174,154.24,154.22,55.62]
[1749068820628,20.15194174,154.23,154.22,55.62]
[1749068821220,26.0,154.27,154.22,55.62]
[1749068821432,20.15194174,154.23,154.22,55.62]
[1749068821636,3.65649053,154.29,154.22,75.77194174]
[1749068821834,23.80843227,154.29,154.25,20.15194174]
[1749068822040,20.15194174,154.28,154.24,20.15194174]
[1749068822222,20.15194174,154.28,154.26,55.48]
[1749068823544,5.26559053,154.3,154.26,55.48]
[1749068823728,174.1,154.31,154.26,55.48]
[1749068823924,20.15194174,154.29,154.26,55.48]
[1749068824130,20.15194174,154.3,154.26,75.63194174]
[1749068824325,1.6008,154.34,154.27,20.15194174]
[1749068824524,20.15194174,154.32,154.28,20.15194174]
[1749068824739,20.15194174,154.32,154.29,43.14]
[1749068825825,20.15194174,154.33,154.29,63.29194174]
[1749068826953,29.65637466,154.35,154.29,63.29194174]
[1749068827148,20.15194174,154.33,154.29,63.29194174]
[1749068827329,20.15194174,154.32,154.29,43.14]
[1749068827529,29.65449664,154.35,154.29,43.14]
[1749068827841,20.15194174,154.32,154.29,43.14]
[1749068830957,20.15194174,154.3,154.26,32.45194174]
[1749068831160,20.15194174,154.27,154.25,37.28]
[1749068831344,6.48119237,154.3,154.26,12.34]
[1749068831553,6.48119237,154.3,154.27,43.14]
[1749068831920,26.0,154.29,154.27,43.12]
[1749068832546,20.15194174,154.28,154.27,43.12]
[1749068834863,26.0,154.3,154.27,43.12]
[1749068835031,20.15194174,154.28,154.27,43.12]
[1749068838835,20.15194174,154.28,154.26,12.34]
[1749068839147,148.1,154.29,154.27,42.94]
[1749068840250,20.15194174,154.28,154.27,42.94]
[1749068840649,20.15194174,154.28,154.26,12.34]
[1749068840844,20.15194174,154.27,154.26,12.34]
[1749068841037,20.15194174,154.27,154.26,55.26]
[1749068841666,148.1,154.29,154.26,55.26]
[1749068841854,20.15194174,154.3,154.26,75.41194174]
[1749068842362,20.15194174,154.28,154.26,55.26]
[1749068842833,20.15194174,154.27,154.26,55.26]
[1749068843038,20.15194174,154.28,154.26,55.26]
[1749068844845,47.75214174,154.32,154.26,55.26]
[1749068844846,27.6002,154.32,154.26,55.26]
[1749068845052,20.15194174,154.29,154.26,55.26]
[1749068845361,20.15194174,154.3,154.26,55.26]
[1749068846050,1.6002,154.32,154.26,55.26]
[1749068846259,20.15194174,154.3,154.26,55.26]
[1749068847259,26.0,154.33,154.27,20.15194174]
[1749068847448,20.15194174,154.3,154.26,75.41194174]
[1749068848744,26.0,154.33,154.26,75.41194174]
[1749068849259,26.0,154.33,154.27,20.15194174]
[1749068849648,20.15194174,154.31,154.27,20.15194174]
[1749068850646,26.0,154.33,154.27,20.15194174]
[1749068850846,20.15194174,154.31,154.27,20.15194174]
[1749068851057,5.29446207,154.36,154.29,20.15194174]
[1749068851244,20.15194174,154.35,154.31,20.15194174]
[1749068851446,7.7828,154.4,154.34,20.15194174]
[1749068851659,20.15194174,154.39,154.35,62.73194174]
[1749068852064,20.15194174,154.38,154.35,42.58]
[1749068852444,20.15194174,154.37,154.35,42.58]
[1749068852644,20.15194174,154.36,154.35,42.58]
[1749068853352,20.15194174,154.36,154.32,32.49194174]
[1749068853559,20.15194174,154.36,154.33,42.56]
[1749068854573,20.15194174,154.34,154.33,42.56]
[1749068856568,20.15194174,154.34,154.32,12.34]
[1749068856871,20.15194174,154.34,154.33,42.46]
[1749068858469,20.15194174,154.34,154.33,42.44]
[1749068859479,20.15194174,154.36,154.33,42.44]
[1749068861379,148.1,154.39,154.33,42.44]
[1749068861588,20.15194174,154.36,154.33,42.44]
[1749068861756,20.15194174,154.36,154.34,42.34]
[1749068863172,20.15194174,154.35,154.34,42.34]
[1749068863684,20.15194174,154.35,154.32,12.34]
[1749068863856,20.15194174,154.33,154.26,6.246]
[1749068864057,20.15194174,154.28,154.27,54.24]
[1749068865473,20.15194174,154.29,154.27,54.24]
[1749068866590,20.15194174,154.3,154.27,54.24]
[1749068866883,20.15194174,154.3,154.28,42.24]
[1749068867260,1.511,154.34,154.28,42.24]
[1749068867461,20.15194174,154.31,154.28,42.24]
[1749068868792,20.15194174,154.3,154.28,42.24]
[1749068869882,27.511,154.34,154.28,42.24]
[1749068870085,20.15194174,154.31,154.29,42.2]
[1749068871191,27.511,154.34,154.29,42.2]
[1749068871391,20.15194174,154.32,154.29,42.2]
[1749068872304,20.15194174,154.31,154.29,42.2]
[1749068877485,20.15194174,154.31,154.3,11.94]
[1749068878791,27.511,154.34,154.3,11.94]
[1749068878986,20.15194174,154.31,154.3,11.94]
[1749068879377,3.65448382,154.37,154.3,11.94]
[1749068879585,20.15194174,154.34,154.3,32.09194174]
[1749068879893,20.15194174,154.34,154.3,11.94]
[1749068880394,20.15194174,154.36,154.32,20.15194174]
[1749068880698,20.15194174,154.36,154.33,41.94]
[1749068880900,20.15194174,154.35,154.33,41.94]
[1749068881678,26.0,154.4,154.34,20.15194174]
[1749068881877,20.15194174,154.38,154.34,20.15194174]
[1749068882083,20.15194174,154.4,154.36,20.15194174]
[1749068882402,20.15194174,154.4,154.37,53.86]
[1749068882604,5.27625531,154.42,154.37,53.86]
[1749068882780,20.15194174,154.39,154.37,53.86]
[1749068883101,20.15194174,154.38,154.37,53.86]
[1749068883309,20.15194174,154.39,154.37,53.86]
[1749068883988,20.15194174,154.38,154.37,53.86]
[1749068885186,5.27625531,154.42,154.37,53.86]
[1749068885410,20.15194174,154.38,154.37,53.86]
[1749068886916,5.27625531,154.42,154.37,53.86]
[1749068887115,20.15194174,154.38,154.37,53.86]
[1749068889720,5.27625531,154.42,154.37,53.86]
[1749068889894,20.15194174,154.39,154.37,53.86]
[1749068891312,1.6187,154.42,154.37,53.86]
[1749068891313,20.15194174,154.38,154.37,53.86]
[1749068892207,20.15194174,154.39,154.37,53.86]
[1749068892798,20.15194174,154.4,154.37,53.86]
[1749068893524,174.1,154.43,154.37,74.01194174]
[1749068893695,20.15194174,154.41,154.37,74.01194174]
[1749068893893,20.15194174,154.41,154.37,53.86]
[1749068894117,20.15194174,154.4,154.37,53.86]
[1749068894294,20.15194174,154.39,154.37,53.86]
[1749068895805,20.15194174,154.4,154.37,11.94]
[1749068896116,20.15194174,154.38,154.37,11.94]
[1749068896316,20.15194174,154.38,154.37,53.64]
[1749068896700,148.1,154.39,154.37,53.64]
[1749068896899,20.15194174,154.38,154.37,53.64]
[1749068897621,148.1,154.39,154.37,53.64]
[1749068897823,168.25194174,154.39,154.37,53.64]
[1749068897998,20.15194174,154.38,154.37,53.64]
[1749068898541,148.1,154.39,154.37,53.64]
[1749068898695,20.15194174,154.38,154.37,53.64]
[1749068899334,148.1,154.39,154.37,53.64]
[1749068899502,20.15194174,154.38,154.37,53.64]
[1749068900143,20.15194174,154.38,154.37,53.62]
[1749068900766,20.15194174,154.38,154.37,11.94]
[1749068901051,20.15194174,154.38,154.37,53.6]
[1749068901653,148.1,154.39,154.37,53.6]
[1749068901825,20.15194174,154.38,154.37,53.6]
[1749068902724,148.1,154.39,154.37,53.6]
[1749068902962,20.15194174,154.38,154.37,53.6]
[1749068904627,168.25194174,154.39,154.37,53.6]
[1749068905237,20.15194174,154.38,154.37,53.6]
[1749068906256,148.1,154.39,154.37,53.6]
[1749068906437,20.15194174,154.38,154.37,53.6]
[1749068907752,148.1,154.39,154.37,53.6]
[1749068908134,168.25194174,154.39,154.37,53.6]
[1749068909473,148.1,154.39,154.37,53.6]
[1749068910553,148.1,154.39,154.37,73.75194174]
[1749068910754,20.15194174,154.41,154.37,73.75194174]
[1749068911267,148.1,154.45,154.38,18.79181043]
[1749068911466,20.15194174,154.41,154.39,41.5]
[1749068911943,148.1,154.45,154.39,41.5]
[1749068912131,20.15194174,154.43,154.39,41.5]
[1749068912327,148.1,154.45,154.39,41.5]
[1749068912531,20.15194174,154.42,154.39,41.5]
[1749068914776,20.15194174,154.41,154.39,41.5]
[1749068914949,20.15194174,154.42,154.39,41.5]
[1749068915836,148.1,154.45,154.39,41.5]
[1749068916035,20.15194174,154.42,154.39,41.5]
[1749068916241,148.1,154.45,154.39,41.5]
[1749068916441,20.15194174,154.42,154.39,41.5]
[1749068918260,20.15194174,154.43,154.39,41.5]
[1749068918563,20.15194174,154.42,154.39,41.5]
[1749068920660,19.65194174,154.42,154.39,41.5]
[1749068923070,148.1,154.45,154.39,41.5]
[1749068923256,20.15194174,154.42,154.39,41.5]
[1749068923457,148.1,154.45,154.39,61.65194174]
[1749068923895,20.15194174,154.43,154.39,61.65194174]
[1749068924961,20.15194174,154.42,154.39,41.5]
[1749068926453,148.1,154.45,154.39,41.5]
[1749068926664,20.15194174,154.42,154.39,41.5]
[1749068926967,148.1,154.45,154.39,41.5]
[1749068927149,20.15194174,154.42,154.39,41.5]
[1749068927972,20.15194174,154.44,154.4,20.29410331]
[1749068928166,148.1,154.45,154.4,20.29410331]
[1749068928376,20.15194174,154.44,154.4,20.29410331]
[1749068929469,27.6163,154.47,154.4,20.29410331]
[1749068929691,20.15194174,154.44,154.4,20.29410331]
[1749068930008,20.15194174,154.46,154.42,20.29410331]
[1749068930162,20.15194174,154.46,154.43,52.7]
[1749068930562,20.15194174,154.45,154.43,52.7]
[1749068930791,20.15194174,154.44,154.43,52.7]
[1749068931273,20.15194174,154.45,154.43,52.7]
[1749068933690,20.15194174,154.45,154.44,52.7]
[1749068934187,148.1,154.48,154.44,52.7]
[1749068934378,20.15194174,154.45,154.44,52.7]
[1749068937996,148.1,154.48,154.44,52.7]
[1749068938194,20.15194174,154.46,154.44,52.7]
[1749068940877,148.1,154.48,154.44,72.85194174]
[1749068941077,168.25194174,154.48,154.44,52.7]
[1749068941316,20.15194174,154.47,154.44,52.7]
[1749068941971,148.1,154.48,154.44,52.7]
[1749068942173,168.25194174,154.48,154.44,52.7]
[1749068942470,20.15194174,154.47,154.44,52.7]
[1749068948884,148.1,154.48,154.44,52.7]
[1749068949082,20.15194174,154.47,154.44,52.7]
[1749068949577,20.15194174,154.47,154.44,11.32]
[1749068949790,20.15194174,154.47,154.45,41.36]
[1749068949980,168.25194174,154.48,154.45,41.36]
[1749068951404,20.15194174,154.47,154.43,20.15194174]
[1749068951585,20.15194174,154.48,154.44,11.3]
[1749068951909,20.15194174,154.45,154.44,11.3]
[1749068952082,20.15194174,154.45,154.44,52.66]
[1749068953500,20.15194174,154.45,154.44,11.3]
[1749068953803,20.15194174,154.45,154.44,52.66]
[1749068955883,20.15194174,154.45,154.44,11.3]
[1749068956193,20.15194174,154.45,154.44,52.66]
[1749068958107,148.1,154.47,154.44,52.66]
[1749068958278,20.15194174,154.46,154.44,52.66]
[1749068959507,20.15194174,154.46,154.45,41.36]
[1749068959814,148.1,154.47,154.45,41.36]
[1749068963490,168.25194174,154.47,154.45,41.36]
[1749068964611,20.15194174,154.46,154.45,41.36]
[1749068964920,148.1,154.47,154.45,41.36]
[1749068965125,168.25194174,154.47,154.45,41.36]
[1749068967000,20.15194174,154.46,154.45,41.36]
[1749068968323,20.15194174,154.46,154.44,11.3]
[1749068968506,20.15194174,154.46,154.45,41.36]
[1749068969920,148.1,154.47,154.45,41.36]
[1749068970103,20.15194174,154.46,154.45,41.36]
[1749068973299,20.15194174,154.46,154.45,52.66]
[1749068974319,168.25194174,154.47,154.45,52.66]
[1749068976612,20.15194174,154.46,154.45,52.66]
[1749068977231,12.85933815,154.46,154.45,52.66]
[1749068978235,160.95933815,154.47,154.45,52.66]
[1749068980034,12.85933815,154.46,154.45,52.66]
[1749068982535,160.95933815,154.47,154.45,52.66]
[1749068987935,38.85933815,154.49,154.45,52.66]
[1749068988235,12.85933815,154.48,154.45,52.66]
[1749068991138,12.85933815,154.49,154.45,52.66]
[1749068992436,12.85933815,154.49,154.45,65.51933815]
[1749068997642,1.5422,154.51,154.45,65.51933815]
[1749068997847,7.85933815,154.49,154.45,65.51933815]
[1749068998519,174.1,154.52,154.46,12.85933815]
[1749068998716,12.85933815,154.5,154.47,41.32]
[1749068998920,12.85933815,154.51,154.47,54.17933815]
[1749068999531,12.85933815,154.5,154.47,41.32]
[1749068999727,12.85933815,154.48,154.47,41.32]
[1749069000028,12.85933815,154.48,154.45,11.3]
[1749069000233,26.0,154.49,154.46,41.3]
[1749069000427,12.85933815,154.47,154.46,41.3]
[1749069000633,12.85933815,154.48,154.46,41.3]
[1749069001748,12.85933815,154.47,154.46,41.3]
[1749069001951,12.85933815,154.47,154.46,11.28]
[1749069002163,12.85933815,154.47,154.46,52.58]
[1749069005442,12.85933815,154.47,154.46,11.28]
[1749069005642,12.85933815,154.47,154.46,52.58]
[1749069006238,16.51838958,154.47,154.46,52.58]
[1749069007741,26.0,154.48,154.46,52.58]
[1749069007944,12.85933815,154.47,154.46,52.58]
[1749069014134,12.85933815,154.47,154.46,11.28]
[1749069014338,77.4373526,154.48,154.46,52.58]
[1749069014667,12.85933815,154.47,154.46,52.58]
[1749069014867,26.0,154.48,154.46,52.58]
[1749069015067,12.85933815,154.47,154.46,52.58]
[1749069016567,26.0,154.44,154.4,37.24]
[1749069016766,26.0,154.45,154.41,52.56]
[1749069017954,12.85933815,154.42,154.41,52.56]
[1749069018985,12.85933815,154.42,154.41,11.26]
[1749069019185,12.85933815,154.42,154.41,52.54]
[1749069022199,26.0,154.43,154.41,52.54]
[1749069022369,12.85933815,154.44,154.41,52.54]
[1749069022570,18.64964886,154.49,154.41,52.54]
[1749069022792,12.85933815,154.44,154.41,52.54]
[1749069023881,12.85933815,154.45,154.41,52.54]
[1749069024170,12.85933815,154.46,154.41,65.39933815]
[1749069024380,12.85933815,154.46,154.41,73.32253815]
[1749069024962,12.85933815,154.45,154.41,60.4632]
[1749069025167,20.09361826,154.45,154.41,60.4632]
[1749069027889,20.09361826,154.44,154.41,60.4632]
[1749069030578,20.09361826,154.43,154.41,11.26]
[1749069030898,20.09361826,154.43,154.42,41.26]
[1749069033082,20.09361826,154.43,154.4,37.24]
[1749069033281,20.09361826,154.43,154.41,52.52]
[1749069033500,20.09361826,154.43,154.42,52.52]
[1749069034694,20.09361826,154.43,154.4,37.24]
[1749069035102,20.09361826,154.43,154.41,52.52]
[1749069035308,20.09361826,154.43,154.42,41.26]
[1749069037110,20.09361826,154.43,154.41,11.26]
[1749069037412,20.09361826,154.43,154.42,41.26]
[1749069040716,20.09361826,154.43,154.42,11.24]
[1749069040892,20.09361826,154.43,154.42,52.48]
[1749069041694,20.23577983,154.43,154.42,11.24]
[1749069041901,26.0,154.41,154.4,37.24]
[1749069042112,66.18723652,154.41,154.4,89.72]
[1749069042526,46.09361826,154.41,154.4,89.72]
[1749069047331,3.65036725,154.44,154.4,89.72]
[1749069047526,20.09361826,154.41,154.4,89.72]
[1749069048214,20.09361826,154.42,154.4,89.72]
[1749069048415,26.0,154.43,154.4,89.72]
[1749069048416,20.09361826,154.43,154.4,89.72]
[1749069048648,20.09361826,154.45,154.41,20.09361826]
[1749069048950,20.09361826,154.45,154.42,41.24]
[1749069052317,26.0,154.46,154.42,41.24]
[1749069052517,20.09361826,154.45,154.42,41.24]
[1749069052713,26.0,154.46,154.42,41.24]
[1749069052919,20.09361826,154.45,154.42,41.24]
[1749069053348,26.0,154.46,154.42,41.24]
[1749069053573,46.09361826,154.46,154.42,41.24]
[1749069053845,20.09361826,154.46,154.42,41.24]
[1749069054233,20.09361826,154.47,154.43,20.23577983]
[1749069055542,20.09361826,154.45,154.42,41.24]
[1749069055749,20.09361826,154.45,154.41,26.47561826]
[1749069056045,20.09361826,154.45,154.42,41.22]
[1749069056239,20.09361826,154.44,154.42,41.22]
[1749069056947,20.09361826,154.45,154.42,41.22]
[1749069058951,20.09361826,154.45,154.43,11.24]
[1749069059725,29.64664912,154.5,154.43,11.24]
[1749069059919,20.09361826,154.46,154.43,11.24]
[1749069061629,20.09361826,154.45,154.43,11.24]
[1749069061954,20.09361826,154.44,154.43,11.24]
[1749069064225,20.09361826,154.44,154.43,52.44]
[1749069066637,20.09361826,154.44,154.43,11.24]
[1749069066968,20.09361826,154.44,154.43,52.44]
[1749069070870,26.0,154.44,154.43,11.24]
[1749069071036,46.09361826,154.44,154.43,52.42]
[1749069076677,46.09361826,154.44,154.39,11.2]
[1749069076678,26.0,154.4,154.39,11.2]
[1749069076842,66.18723652,154.4,154.39,52.38]
[1749069077461,66.18723652,154.4,154.39,11.2]
[1749069077672,72.80608202,154.4,154.39,11.2]
[1749069077836,0.14216157,154.39,154.38,11.2]
[1749069078029,20.23577983,154.39,154.37,41.18]
[1749069078235,20.09361826,154.38,154.37,41.18]
[1749069078532,20.09361826,154.38,154.36,11.2]
[1749069078730,0.14216157,154.39,154.37,41.18]
[1749069079158,0.14216157,154.39,154.36,11.2]
[1749069079356,0.14216157,154.39,154.37,41.18]
[1749069079751,26.0,154.37,154.36,11.2]
[1749069079962,46.09361826,154.37,154.36,11.2]
[1749069080142,46.09361826,154.37,154.36,52.38]
[1749069081448,46.23577983,154.37,154.36,11.2]
[1749069086754,52.71372243,154.37,154.36,11.2]
[1749069087781,46.23577983,154.37,154.36,11.2]
[1749069088659,52.71372243,154.37,154.36,11.2]
[1749069088865,71.50553286,154.37,154.36,11.2]
[1749069090192,26.0,154.34,154.33,11.2]
[1749069090480,46.23577983,154.34,154.33,52.36]
[1749069090650,85.12120852,154.34,154.33,11.2]
[1749069093478,46.09361826,154.34,154.33,11.2]
[1749069093780,46.09361826,154.34,154.33,52.36]
[1749069095482,91.60041028,154.34,154.33,11.2]
[1749069095983,91.88473342,154.34,154.25,43.4168]
[1749069096153,20.09361826,154.32,154.3,11.2]
[1749069096357,46.09361826,154.31,154.3,52.36]
[1749069097075,46.09361826,154.31,154.3,11.2]
[1749069097684,39.02759026,154.31,154.3,11.2]
[1749069097861,20.09361826,154.31,154.3,11.2]
[1749069099863,1.6347,154.37,154.3,52.36]
[1749069100065,20.09361826,154.33,154.3,52.36]
[1749069100689,20.09361826,154.31,154.3,52.36]
[1749069103276,26.0,154.34,154.3,52.36]
[1749069103475,20.09361826,154.31,154.3,52.36]
[1749069103671,148.1,154.33,154.3,52.36]